[Event "*** Titled Tuesday Blitz"]
[Site "Chess.com"]
[Date "2021.02.02"]
[Round "2"]
[White "XDPS"]
[Black "strelec64"]
[Result "1-0"]
[WhiteElo "2715"]
[BlackElo "2490"]
[TimeControl "180+1"]
[EndTime "10:21:07 PST"]
[Termination "XDPS won by resignation"]

1. e4 {[%clk 0:03:00.9]} 1... c5 {[%clk 0:02:57.8]} 2. Nf3 {[%clk 0:03:00.9]}
2... d6 {[%clk 0:02:56.5]} 3. d4 {[%clk 0:03:01.1]} 3... cxd4 {[%clk 0:02:56.6]}
4. Nxd4 {[%clk 0:03:01.9]} 4... Nf6 {[%clk 0:02:56.6]} 5. Nc3 {[%clk 0:03:02.5]}
5... Nc6 {[%clk 0:02:56.5]} 6. Be2 {[%clk 0:03:02.7]} 6... e5 {[%clk 0:02:53.4]}
7. Nf3 {[%clk 0:03:02.7]} 7... h6 {[%clk 0:02:53.1]} 8. O-O {[%clk 0:03:03.2]}
8... Be7 {[%clk 0:02:52.2]} 9. h3 {[%clk 0:03:03.8]} 9... O-O {[%clk 0:02:50.5]}
10. Re1 {[%clk 0:03:04.4]} 10... Be6 {[%clk 0:02:49.9]} 11. Bf1 {[%clk
0:03:04.9]} 11... Nb8 {[%clk 0:02:45.6]} 12. Nd5 {[%clk 0:03:03.3]} 12... Nxd5
{[%clk 0:02:39.5]} 13. exd5 {[%clk 0:03:04.2]} 13... Bf5 {[%clk 0:02:39.6]} 14.
c4 {[%clk 0:03:04.6]} 14... Nd7 {[%clk 0:02:39.2]} 15. Be3 {[%clk 0:03:02.2]}
15... Bg6 {[%clk 0:02:31.5]} 16. b4 {[%clk 0:03:02]} 16... e4 {[%clk 0:02:21.5]}
17. Nd4 {[%clk 0:03:01.7]} 17... Ne5 {[%clk 0:02:21.2]} 18. Qb3 {[%clk
0:03:01.1]} 18... Rc8 {[%clk 0:02:10.5]} 19. Rac1 {[%clk 0:03:00.6]} 19... Bf6
{[%clk 0:02:07.7]} 20. c5 {[%clk 0:02:57.3]} 20... Nd3 {[%clk 0:01:57.6]} 21.
Bxd3 {[%clk 0:02:56.6]} 21... exd3 {[%clk 0:01:57.7]} 22. Red1 {[%clk
0:02:53.7]} 22... Bg5 {[%clk 0:01:50.6]} 23. Bxg5 {[%clk 0:02:43.1]} 23... Qxg5
{[%clk 0:01:50.3]} 24. Nb5 {[%clk 0:02:41.9]} 24... dxc5 {[%clk 0:01:41.1]} 25.
bxc5 {[%clk 0:02:42.8]} 25... Be4 {[%clk 0:01:38.6]} 26. g3 {[%clk 0:02:31.8]}
26... Qf5 {[%clk 0:01:30.4]} 27. Nd6 {[%clk 0:02:17.9]} 27... Qxd5 {[%clk
0:01:22.3]} 28. Qxd5 {[%clk 0:02:17.8]} 28... Bxd5 {[%clk 0:01:22.5]} 29. Nxc8
{[%clk 0:02:18.7]} 29... Rxc8 {[%clk 0:01:22.4]} 30. Rxd3 {[%clk 0:02:19.3]}
30... Bxa2 {[%clk 0:01:22.1]} 31. Ra3 {[%clk 0:02:20]} 31... Bd5 {[%clk
0:01:20.8]} 32. Rxa7 {[%clk 0:02:20.4]} 32... Bc6 {[%clk 0:01:20.9]} 33. Ra3
{[%clk 0:02:19.5]} 33... Rd8 {[%clk 0:01:17.8]} 34. Re3 {[%clk 0:02:19.9]} 34...
g6 {[%clk 0:01:16]} 35. h4 {[%clk 0:02:20.1]} 35... h5 {[%clk 0:01:15.3]} 36.
Ree1 {[%clk 0:02:19.7]} 36... Rd2 {[%clk 0:01:12.2]} 37. Red1 {[%clk 0:02:09.9]}
37... Ra2 {[%clk 0:01:11.1]} 38. Rc3 {[%clk 0:02:03.6]} 38... Kg7 {[%clk
0:01:10.4]} 39. Re1 {[%clk 0:02:03.4]} 39... Rb2 {[%clk 0:01:09.7]} 40. Rcc1
{[%clk 0:01:58.1]} 40... Ra2 {[%clk 0:01:08.4]} 41. Re7 {[%clk 0:01:54.5]} 41...
Rb2 {[%clk 0:01:07.8]} 42. Rc7 {[%clk 0:01:51.7]} 42... Ra2 {[%clk 0:01:06.2]}
43. Re1 {[%clk 0:01:50]} 43... Rc2 {[%clk 0:01:04.7]} 44. Rce7 {[%clk
0:00:42.6]} 44... Rxc5 {[%clk 0:01:02.1]} 45. R7e3 {[%clk 0:00:43.1]} 45... Rc2
{[%clk 0:01:00.4]} 46. f3 {[%clk 0:00:42.1]} 46... Rb2 {[%clk 0:00:55.1]} 47.
R1e2 {[%clk 0:00:42.3]} 47... Rb1+ {[%clk 0:00:53.7]} 48. Kf2 {[%clk 0:00:42.8]}
48... Rb4 {[%clk 0:00:52.9]} 49. Rc2 {[%clk 0:00:41]} 49... Rd4 {[%clk
0:00:52.3]} 50. Rce2 {[%clk 0:00:40.4]} 50... Rd6 {[%clk 0:00:51.5]} 51. Rc3
{[%clk 0:00:39.7]} 51... Rd4 {[%clk 0:00:51]} 52. Ke3 {[%clk 0:00:38.8]} 52...
Rd6 {[%clk 0:00:49.8]} 53. Rd2 {[%clk 0:00:39.2]} 53... Rf6 {[%clk 0:00:48.3]}
54. Kf2 {[%clk 0:00:37.5]} 54... Rf5 {[%clk 0:00:47.4]} 55. Re3 {[%clk
0:00:36.6]} 55... Rf6 {[%clk 0:00:46.6]} 56. Rd4 {[%clk 0:00:36.5]} 56... Rf5
{[%clk 0:00:43.5]} 57. Rc3 {[%clk 0:00:36.4]} 57... Re5 {[%clk 0:00:42.3]} 58.
g4 {[%clk 0:00:36.1]} 58... Ra5 {[%clk 0:00:39.5]} 59. Kg3 {[%clk 0:00:35.6]}
59... hxg4 {[%clk 0:00:38.3]} 60. fxg4 {[%clk 0:00:32.6]} 60... Re5 {[%clk
0:00:38.1]} 61. Rf4 {[%clk 0:00:31.3]} 61... Re6 {[%clk 0:00:33.2]} 62. Rd3
{[%clk 0:00:29.8]} 62... Re1 {[%clk 0:00:31.7]} 63. Kf2 {[%clk 0:00:25.4]} 63...
Re5 {[%clk 0:00:30.7]} 64. Re3 {[%clk 0:00:25]} 64... Rxe3 {[%clk 0:00:26.7]}
65. Kxe3 {[%clk 0:00:25.3]} 65... f6 {[%clk 0:00:25.7]} 66. Rb4 {[%clk 0:00:25]}
66... Kh6 {[%clk 0:00:22.5]} 67. Rd4 {[%clk 0:00:21.2]} 67... f5 {[%clk
0:00:20.3]} 68. g5+ {[%clk 0:00:17.2]} 68... Kh5 {[%clk 0:00:20.4]} 69. Kf2
{[%clk 0:00:17.7]} 69... Be4 {[%clk 0:00:19]} 70. Kg3 {[%clk 0:00:18.2]} 70...
Bc6 {[%clk 0:00:15.8]} 71. Rd8 {[%clk 0:00:18.4]} 1-0

[Event "*** Titled Tuesday Blitz"]
[Site "Chess.com"]
[Date "2021.02.02"]
[Round "2"]
[White "m_ezat"]
[Black "Sam_ChessMood"]
[Result "0-1"]
[WhiteElo "2535"]
[BlackElo "2842"]
[TimeControl "180+1"]
[EndTime "10:21:10 PST"]
[Termination "Sam_ChessMood won by checkmate"]

1. d4 {[%clk 0:02:58.5]} 1... Nf6 {[%clk 0:02:59.5]} 2. c4 {[%clk 0:02:57]} 2...
e6 {[%clk 0:02:59.8]} 3. Nc3 {[%clk 0:02:56.9]} 3... Bb4 {[%clk 0:02:57.3]} 4.
e3 {[%clk 0:02:57]} 4... O-O {[%clk 0:02:47.4]} 5. a3 {[%clk 0:02:55.1]} 5...
Bxc3+ {[%clk 0:02:47.1]} 6. bxc3 {[%clk 0:02:55.4]} 6... b6 {[%clk 0:02:25.6]}
7. Bd3 {[%clk 0:02:55.2]} 7... Ba6 {[%clk 0:02:23.5]} 8. Ne2 {[%clk 0:02:53.2]}
8... Nc6 {[%clk 0:02:23.4]} 9. O-O {[%clk 0:02:52.7]} 9... Na5 {[%clk
0:02:23.2]} 10. e4 {[%clk 0:02:52.6]} 10... Ne8 {[%clk 0:02:18.2]} 11. Ng3
{[%clk 0:02:52.6]} 11... Bxc4 {[%clk 0:02:16.1]} 12. Bxc4 {[%clk 0:02:50.6]}
12... Nxc4 {[%clk 0:02:17]} 13. f4 {[%clk 0:02:51.2]} 13... f5 {[%clk
0:02:14.3]} 14. Qe2 {[%clk 0:02:38.1]} 14... d5 {[%clk 0:01:51.1]} 15. exf5
{[%clk 0:02:10.5]} 15... exf5 {[%clk 0:01:52]} 16. Qe6+ {[%clk 0:02:10.6]} 16...
Kh8 {[%clk 0:01:52.3]} 17. Re1 {[%clk 0:02:01]} 17... Qd6 {[%clk 0:01:38.3]} 18.
Qe2 {[%clk 0:01:51.4]} 18... Qd7 {[%clk 0:01:33.6]} 19. a4 {[%clk 0:01:46.9]}
19... Ned6 {[%clk 0:01:29.9]} 20. Ba3 {[%clk 0:01:44.8]} 20... Rae8 {[%clk
0:01:25.2]} 21. Qf2 {[%clk 0:01:38.1]} 21... Rxe1+ {[%clk 0:01:22.4]} 22. Qxe1
{[%clk 0:01:37.3]} 22... Re8 {[%clk 0:01:22.6]} 23. Qf2 {[%clk 0:01:21.4]} 23...
Ne4 {[%clk 0:01:19.3]} 24. Nxe4 {[%clk 0:01:19.7]} 24... fxe4 {[%clk 0:01:19.3]}
25. Bc1 {[%clk 0:01:17.5]} 25... e3 {[%clk 0:01:17.6]} 26. Qe2 {[%clk 0:01:17]}
26... Qf5 {[%clk 0:01:12.5]} 27. g3 {[%clk 0:01:16.4]} 27... a5 {[%clk
0:01:09.3]} 28. Ba3 {[%clk 0:01:03.1]} 28... h6 {[%clk 0:01:02.2]} 29. Bc1
{[%clk 0:01:01.2]} 29... Qe4 {[%clk 0:00:54.1]} 30. h3 {[%clk 0:00:52.4]} 30...
Re6 {[%clk 0:00:42.9]} 31. Kh2 {[%clk 0:00:51.6]} 31... Kh7 {[%clk 0:00:43.2]}
32. h4 {[%clk 0:00:40.2]} 32... Rf6 {[%clk 0:00:39]} 33. Kg1 {[%clk 0:00:38.7]}
33... Rg6 {[%clk 0:00:37.4]} 34. Kh2 {[%clk 0:00:38.5]} 34... Qf5 {[%clk
0:00:37]} 35. Ra2 {[%clk 0:00:31.2]} 35... Re6 {[%clk 0:00:34.7]} 36. Ra1 {[%clk
0:00:27.3]} 36... h5 {[%clk 0:00:34.2]} 37. Kg2 {[%clk 0:00:25.9]} 37... Qg4
{[%clk 0:00:33.5]} 38. Qxg4 {[%clk 0:00:21.6]} 38... hxg4 {[%clk 0:00:33.4]} 39.
Kf1 {[%clk 0:00:22.3]} 39... Kg6 {[%clk 0:00:32.7]} 40. Ke2 {[%clk 0:00:22.4]}
40... Kf5 {[%clk 0:00:33]} 41. Ra2 {[%clk 0:00:22.2]} 41... c6 {[%clk
0:00:29.8]} 42. Ra1 {[%clk 0:00:21.7]} 42... Re8 {[%clk 0:00:25.9]} 43. Ra2
{[%clk 0:00:18.7]} 43... Ke4 {[%clk 0:00:25.8]} 44. Ra1 {[%clk 0:00:17.1]} 44...
Rf8 {[%clk 0:00:24.6]} 45. Rb1 {[%clk 0:00:16.7]} 45... g5 {[%clk 0:00:22.8]}
46. Bxe3 {[%clk 0:00:02.9]} 46... Nxe3 {[%clk 0:00:21.1]} 47. Rxb6 {[%clk
0:00:03]} 47... gxf4 {[%clk 0:00:19.6]} 48. gxf4 {[%clk 0:00:03.3]} 48... Ng2
{[%clk 0:00:15.8]} 49. Rxc6 {[%clk 0:00:02.6]} 49... Nxf4+ {[%clk 0:00:16.1]}
50. Kf2 {[%clk 0:00:02.3]} 50... Nh5+ {[%clk 0:00:11.6]} 51. Kg2 {[%clk
0:00:02.8]} 51... Rf3 {[%clk 0:00:10.6]} 52. Rh6 {[%clk 0:00:02.2]} 52... Nf4+
{[%clk 0:00:10.2]} 53. Kg1 {[%clk 0:00:03.1]} 53... g3 {[%clk 0:00:09.4]} 54.
Rg6 {[%clk 0:00:01.7]} 54... Nxg6 {[%clk 0:00:09.1]} 55. h5 {[%clk 0:00:01.9]}
55... Nf4 {[%clk 0:00:08.8]} 56. h6 {[%clk 0:00:02.8]} 56... Rf2 {[%clk
0:00:08.4]} 57. h7 {[%clk 0:00:02.2]} 57... Nh3+ {[%clk 0:00:08.7]} 58. Kh1
{[%clk 0:00:03.1]} 58... Rh2# {[%clk 0:00:09.6]} 0-1

[Event "*** Titled Tuesday Blitz"]
[Site "Chess.com"]
[Date "2021.02.02"]
[Round "2"]
[White "korkmaz16"]
[Black "Vnebo"]
[Result "1/2-1/2"]
[WhiteElo "2410"]
[BlackElo "2728"]
[TimeControl "180+1"]
[EndTime "10:21:11 PST"]
[Termination "Game drawn by repetition"]

1. e4 {[%clk 0:03:00.9]} 1... d5 {[%clk 0:02:59.1]} 2. exd5 {[%clk 0:02:58.5]}
2... Qxd5 {[%clk 0:03:00]} 3. Nc3 {[%clk 0:02:57.8]} 3... Qd6 {[%clk 0:02:59.7]}
4. d4 {[%clk 0:02:56.9]} 4... Nf6 {[%clk 0:02:59]} 5. Nf3 {[%clk 0:02:55.1]}
5... c6 {[%clk 0:02:58.6]} 6. Ne5 {[%clk 0:02:50.8]} 6... Nbd7 {[%clk
0:02:57.5]} 7. Nc4 {[%clk 0:02:43.2]} 7... Qc7 {[%clk 0:02:57.1]} 8. Qf3 {[%clk
0:02:36.4]} 8... Nb6 {[%clk 0:02:54.6]} 9. Bf4 {[%clk 0:02:33.8]} 9... Qd7
{[%clk 0:02:54.2]} 10. Be5 {[%clk 0:02:25.7]} 10... Qg4 {[%clk 0:02:46]} 11.
Qxg4 {[%clk 0:01:55.8]} 11... Bxg4 {[%clk 0:02:41.4]} 12. f3 {[%clk 0:01:53.8]}
12... Nxc4 {[%clk 0:02:20.5]} 13. Bxc4 {[%clk 0:01:46.6]} 13... Bf5 {[%clk
0:02:19.6]} 14. O-O-O {[%clk 0:01:45.8]} 14... e6 {[%clk 0:02:17.8]} 15. Rhe1
{[%clk 0:01:28]} 15... O-O-O {[%clk 0:02:09.6]} 16. Ne4 {[%clk 0:01:10.9]} 16...
Nxe4 {[%clk 0:01:18.7]} 17. fxe4 {[%clk 0:01:10.4]} 17... Bg4 {[%clk 0:01:18.6]}
18. Be2 {[%clk 0:01:07.8]} 18... Bxe2 {[%clk 0:01:15.9]} 19. Rxe2 {[%clk
0:01:07.8]} 19... f6 {[%clk 0:01:14.7]} 20. Bg3 {[%clk 0:01:01.7]} 20... Be7
{[%clk 0:01:05.1]} 21. d5 {[%clk 0:00:54.8]} 21... cxd5 {[%clk 0:00:26.6]} 22.
exd5 {[%clk 0:00:54.6]} 22... e5 {[%clk 0:00:27.2]} 23. c4 {[%clk 0:00:51.9]}
23... b6 {[%clk 0:00:22.6]} 24. a3 {[%clk 0:00:40.1]} 24... Kb7 {[%clk
0:00:21.4]} 25. Kb1 {[%clk 0:00:35.4]} 25... Rd7 {[%clk 0:00:21.1]} 26. b4
{[%clk 0:00:31.2]} 26... Rc8 {[%clk 0:00:20.9]} 27. Rc2 {[%clk 0:00:31.1]} 27...
a5 {[%clk 0:00:20.1]} 28. Be1 {[%clk 0:00:30.3]} 28... axb4 {[%clk 0:00:19.6]}
29. Bxb4 {[%clk 0:00:28.2]} 29... Bc5 {[%clk 0:00:19]} 30. Ka2 {[%clk
0:00:27.2]} 30... Bd4 {[%clk 0:00:18.6]} 31. Kb3 {[%clk 0:00:26.8]} 31... f5
{[%clk 0:00:17]} 32. Bc3 {[%clk 0:00:26.8]} 32... Bxc3 {[%clk 0:00:15.3]} 33.
Rxc3 {[%clk 0:00:26.7]} 33... e4 {[%clk 0:00:15.3]} 34. c5 {[%clk 0:00:24.6]}
34... bxc5 {[%clk 0:00:10.2]} 35. Kc4 {[%clk 0:00:23.8]} 35... Kc7 {[%clk
0:00:09.5]} 36. Rb1 {[%clk 0:00:20.5]} 36... Kd6 {[%clk 0:00:05.4]} 37. Rb6+
{[%clk 0:00:19.3]} 37... Ke7 {[%clk 0:00:05.9]} 38. Re6+ {[%clk 0:00:17.7]}
38... Kf7 {[%clk 0:00:06.1]} 39. Re5 {[%clk 0:00:18]} 39... g6 {[%clk
0:00:05.4]} 40. g4 {[%clk 0:00:17.2]} 40... Ra7 {[%clk 0:00:05.5]} 41. gxf5
{[%clk 0:00:16]} 41... Kf6 {[%clk 0:00:05.9]} 42. Rxe4 {[%clk 0:00:13.5]} 42...
Ra4+ {[%clk 0:00:05.4]} 43. Kd3 {[%clk 0:00:13.2]} 43... Rxe4 {[%clk 0:00:06]}
44. Kxe4 {[%clk 0:00:14]} 44... gxf5+ {[%clk 0:00:06.5]} 45. Kd3 {[%clk
0:00:13.4]} 45... Ke5 {[%clk 0:00:07]} 46. Kc4 {[%clk 0:00:13.9]} 46... Kd6
{[%clk 0:00:05]} 47. Re3 {[%clk 0:00:13.5]} 47... Rf8 {[%clk 0:00:03.1]} 48.
Re6+ {[%clk 0:00:13.4]} 48... Kd7 {[%clk 0:00:03.8]} 49. Kxc5 {[%clk 0:00:13.8]}
49... f4 {[%clk 0:00:04.4]} 50. Re2 {[%clk 0:00:14]} 50... f3 {[%clk 0:00:04.8]}
51. Rf2 {[%clk 0:00:14.6]} 51... Rf4 {[%clk 0:00:05]} 52. d6 {[%clk 0:00:13]}
52... Rf5+ {[%clk 0:00:04.8]} 53. Kd4 {[%clk 0:00:13.4]} 53... Kxd6 {[%clk
0:00:05.3]} 54. Ke4 {[%clk 0:00:13.9]} 54... Rh5 {[%clk 0:00:04.7]} 55. Kxf3
{[%clk 0:00:13.8]} 55... Rh3+ {[%clk 0:00:04.8]} 56. Kg4 {[%clk 0:00:14.4]}
56... Rxa3 {[%clk 0:00:05.3]} 57. Rf7 {[%clk 0:00:13.9]} 57... Ke6 {[%clk
0:00:05.4]} 58. Rxh7 {[%clk 0:00:13.6]} 58... Kf6 {[%clk 0:00:05.9]} 59. h4
{[%clk 0:00:12.9]} 59... Ra4+ {[%clk 0:00:05.9]} 60. Kh5 {[%clk 0:00:12]} 60...
Ra5+ {[%clk 0:00:06.1]} 61. Kh6 {[%clk 0:00:12.3]} 61... Ra4 {[%clk 0:00:04.8]}
62. h5 {[%clk 0:00:12.4]} 62... Ra8 {[%clk 0:00:04]} 63. Rg7 {[%clk 0:00:07.8]}
63... Rh8+ {[%clk 0:00:04.1]} 64. Rh7 {[%clk 0:00:08.3]} 64... Rg8 {[%clk
0:00:04.4]} 65. Rb7 {[%clk 0:00:08]} 65... Rh8+ {[%clk 0:00:04.6]} 66. Rh7
{[%clk 0:00:07.9]} 66... Rg8 {[%clk 0:00:05]} 67. Rb7 {[%clk 0:00:07.7]} 67...
Rh8+ {[%clk 0:00:05.3]} 68. Rh7 {[%clk 0:00:07.9]} 1/2-1/2

[Event "*** Titled Tuesday Blitz"]
[Site "Chess.com"]
[Date "2021.02.02"]
[Round "2"]
[White "Coiote53"]
[Black "hermionegrangermagic"]
[Result "0-1"]
[WhiteElo "2351"]
[BlackElo "2643"]
[TimeControl "180+1"]
[EndTime "10:21:14 PST"]
[Termination "hermionegrangermagic won by resignation"]

1. e4 {[%clk 0:03:00.9]} 1... c5 {[%clk 0:02:52.4]} 2. Nf3 {[%clk 0:02:58.1]}
2... Nc6 {[%clk 0:02:51.9]} 3. d4 {[%clk 0:02:59]} 3... cxd4 {[%clk 0:02:52.4]}
4. Nxd4 {[%clk 0:02:59.9]} 4... g6 {[%clk 0:02:52.5]} 5. c4 {[%clk 0:02:59.6]}
5... Bg7 {[%clk 0:02:52.6]} 6. Be3 {[%clk 0:02:59.9]} 6... Nf6 {[%clk
0:02:52.1]} 7. Nc3 {[%clk 0:02:59.6]} 7... O-O {[%clk 0:02:51.8]} 8. Be2 {[%clk
0:02:57.6]} 8... d6 {[%clk 0:02:51.4]} 9. O-O {[%clk 0:02:57.4]} 9... Bd7 {[%clk
0:02:46.8]} 10. h3 {[%clk 0:02:55.5]} 10... Nxd4 {[%clk 0:02:46.5]} 11. Bxd4
{[%clk 0:02:56.4]} 11... Bc6 {[%clk 0:02:46.6]} 12. Qc2 {[%clk 0:02:55.3]} 12...
Nd7 {[%clk 0:02:45.1]} 13. Bxg7 {[%clk 0:02:54.1]} 13... Kxg7 {[%clk 0:02:44.9]}
14. b4 {[%clk 0:02:49]} 14... b6 {[%clk 0:02:44.7]} 15. Rad1 {[%clk 0:02:45.1]}
15... Rc8 {[%clk 0:02:43.2]} 16. a4 {[%clk 0:02:41.3]} 16... Bb7 {[%clk
0:02:39.8]} 17. Nd5 {[%clk 0:02:35.2]} 17... e6 {[%clk 0:02:31.2]} 18. Ne3
{[%clk 0:02:30.8]} 18... Qe7 {[%clk 0:02:18]} 19. f4 {[%clk 0:02:25.5]} 19...
Nf6 {[%clk 0:02:11.2]} 20. Bf3 {[%clk 0:02:21.8]} 20... d5 {[%clk 0:02:08.9]}
21. exd5 {[%clk 0:02:17.6]} 21... exd5 {[%clk 0:02:02]} 22. Nxd5 {[%clk
0:02:06.3]} 22... Bxd5 {[%clk 0:02:01.2]} 23. Bxd5 {[%clk 0:02:07.2]} 23... Qxb4
{[%clk 0:02:00]} 24. f5 {[%clk 0:02:01.6]} 24... g5 {[%clk 0:01:50.2]} 25. Kh1
{[%clk 0:01:45]} 25... Rfe8 {[%clk 0:01:44.9]} 26. Rd3 {[%clk 0:01:24.5]} 26...
Re1 {[%clk 0:01:33.8]} 27. Rxe1 {[%clk 0:01:23.8]} 27... Qxe1+ {[%clk
0:01:33.1]} 28. Kh2 {[%clk 0:01:24.4]} 28... Qe5+ {[%clk 0:01:33]} 29. Kg1
{[%clk 0:01:17.6]} 29... Qxf5 {[%clk 0:01:13.9]} 30. Qd2 {[%clk 0:01:16.3]}
30... h6 {[%clk 0:00:55.4]} 31. Rd4 {[%clk 0:01:06.3]} 31... Qe5 {[%clk
0:00:51.1]} 32. Rd3 {[%clk 0:00:57.9]} 32... Re8 {[%clk 0:00:50.5]} 33. Ra3
{[%clk 0:00:38.2]} 33... Nh5 {[%clk 0:00:35.4]} 34. a5 {[%clk 0:00:31.1]} 34...
Nf4 {[%clk 0:00:30.3]} 35. axb6 {[%clk 0:00:24.3]} 35... axb6 {[%clk 0:00:29.7]}
36. Ra7 {[%clk 0:00:23.4]} 36... Re7 {[%clk 0:00:28]} 37. Rxe7 {[%clk
0:00:20.4]} 37... Qxe7 {[%clk 0:00:28.9]} 38. Qd4+ {[%clk 0:00:20.2]} 38... Qf6
{[%clk 0:00:27.7]} 39. Qe4 {[%clk 0:00:19.4]} 39... Qd6 {[%clk 0:00:17.9]} 40.
Qe8 {[%clk 0:00:16.7]} 40... Nxd5 {[%clk 0:00:15.5]} 41. cxd5 {[%clk 0:00:14.7]}
41... Qxd5 {[%clk 0:00:15.8]} 42. Qb8 {[%clk 0:00:15.1]} 42... Qd4+ {[%clk
0:00:15]} 43. Kh1 {[%clk 0:00:13.8]} 43... Qc5 {[%clk 0:00:13.4]} 44. Qa7 {[%clk
0:00:11.3]} 44... Qc6 {[%clk 0:00:11.6]} 45. Qa1+ {[%clk 0:00:10.7]} 45... Qf6
{[%clk 0:00:10.5]} 46. Qb1 {[%clk 0:00:10.6]} 46... h5 {[%clk 0:00:10.5]} 47.
Qb5 {[%clk 0:00:10.9]} 47... h4 {[%clk 0:00:10.7]} 48. Kh2 {[%clk 0:00:11.1]}
48... Qd6+ {[%clk 0:00:10.2]} 49. Kh1 {[%clk 0:00:11]} 49... Qd1+ {[%clk
0:00:09.9]} 50. Kh2 {[%clk 0:00:10.4]} 50... Qd6+ {[%clk 0:00:10]} 51. Kh1
{[%clk 0:00:10.5]} 51... Qg6 {[%clk 0:00:10.7]} 52. Qe5+ {[%clk 0:00:10.2]}
52... Kh7 {[%clk 0:00:09.2]} 53. Qe8 {[%clk 0:00:09.6]} 53... Qe6 {[%clk
0:00:08.1]} 54. Qd8 {[%clk 0:00:07.5]} 54... Qh6 {[%clk 0:00:05]} 55. Qd3+
{[%clk 0:00:06.4]} 55... Qg6 {[%clk 0:00:05.2]} 56. Qd5 {[%clk 0:00:06.5]} 56...
Kg7 {[%clk 0:00:05.2]} 57. Qe5+ {[%clk 0:00:06]} 57... Kg8 {[%clk 0:00:04.6]}
58. Qe8+ {[%clk 0:00:06.4]} 58... Kh7 {[%clk 0:00:04.9]} 59. Qe5 {[%clk
0:00:06.6]} 59... g4 {[%clk 0:00:04.9]} 60. hxg4 {[%clk 0:00:06.1]} 60... Qxg4
{[%clk 0:00:05.6]} 61. Qf6 {[%clk 0:00:05.9]} 61... Qg6 {[%clk 0:00:05.2]} 62.
Qf3 {[%clk 0:00:04.4]} 62... f5 {[%clk 0:00:04.6]} 63. Qb7+ {[%clk 0:00:04.3]}
63... Kh6 {[%clk 0:00:04.9]} 64. Qb8 {[%clk 0:00:04.3]} 64... Qf6 {[%clk
0:00:04.1]} 65. Kh2 {[%clk 0:00:04.6]} 65... Kg6 {[%clk 0:00:04.4]} 66. Qf4
{[%clk 0:00:04.7]} 66... Qg5 {[%clk 0:00:04.5]} 67. Qb8 {[%clk 0:00:04.8]} 67...
Qg3+ {[%clk 0:00:04.4]} 68. Qxg3+ {[%clk 0:00:04.2]} 68... hxg3+ {[%clk
0:00:05.3]} 69. Kxg3 {[%clk 0:00:05.1]} 69... b5 {[%clk 0:00:05.6]} 70. Kf4
{[%clk 0:00:06]} 0-1